Cogmind - Beta 13 @@@ ROGUE MODE // 2024.04.15 @ 12:40:55 Player: SovietPaperclip Result: Self-destructed Performance ------------- Evolutions (3) 1500 Regions Visited (6) 1200 Robots Destroyed (66) 330 Value Destroyed (1921) 1921 Prototype IDs (5) 100 Alien Tech Used (0) 0 Bonus (104) 104 TOTAL SCORE: 5155 Bonus ------- High Alert Combat Kills 44 Follower Combat Kills 60 Cogmind --------- Core Integrity 523/700 Matter 269/300 Energy 35/160 System Corruption 0% Temperature Cool (9) Movement Core (500) Ox9 Location -7/Factory Parts ------- > --- POWER (2) -------- Light Nuclear Core > --- PROPULSION (4) --- Xenon Bombardment Thruster > --- UTILITY (5) ------ Large Storage Unit Improved Signal Interpreter Improved Light Armor Plating Improved System Guard > --- WEAPON (2) ------- (None) > --- INVENTORY (15) --- Micro Nuclear Core Coolant Injector High-capacity Matter Pod (200) Structural Scanner Improved Sensor Array Advanced Terrain Scan Processor Energy Filter Transmission Jammer Improved System Guard High-powered Tractor Beam Mini Assault Cannon Heavy Rocket Launcher Plasma Cutter Peak State ------------ > --- POWER ------------ Light Nuclear Core Heavy Deuterium Engine > --- PROPULSION ------- Xenon Bombardment Thruster Xenon Bombardment Thruster Xenon Bombardment Thruster Xenon Bombardment Thruster > --- UTILITY ---------- Huge Storage Unit Improved Terrain Scanner Improved Medium Armor Plating Insulated Plating Improved System Guard > --- WEAPON ----------- Ion Cannon Missile Launcher > --- INVENTORY -------- Light Nuclear Core Micro Nuclear Core Improved Heat Sink Coolant Injector Large Storage Unit Humpback High-capacity Matter Pod Structural Scanner Improved Sensor Array Improved Signal Interpreter Energy Filter Improved Shield Generator Improved System Guard High-powered Tractor Beam Recalibrator Missile Launcher Missile Launcher Plasma Cutter Greatsword [Rating: 54] Favorites ----------- Power Light Nuclear Core Engine Heavy Deuterium Engine Power Core Light Nuclear Core Propulsion Medium Treads Treads Medium Treads Wheel Wheel Hover Unit Cooled Airjet Flight Unit Xenon Bombardment Thruster Utility Improved System Guard Device Improved Terrain Scanner Storage Huge Storage Unit Processor Improved System Guard Protection Insulated Plating Weapon Light Assault Rifle Energy Gun Improved EM Shotgun Energy Cannon Ion Cannon Ballistic Gun Light Assault Rifle Ballistic Cannon Mini Assault Cannon Launcher Grenade Launcher Special Weapon Plasma Cutter Impact Weapon Maul Slashing Weapon Greatsword Build | -11 -10 -10 -10 -9 -8 -7 ------- Run | Yrd Mat Min Exi Min Mat Fac Slots Evolved 6 | . . . . . 4 2 Power 1 | . . . . . . 1 Propulsion 2 | . . . . . 2 . Utility 3 | . . . . . 2 1 Weapon . | . . . . . . . Parts Attached 83 | 6 6 . 1 6 14 50 Power 12 | 1 . . 1 . 3 7 Engine 7 | 1 . . 1 . 2 3 Core 5 | . . . . . 1 4 Reactor . | . . . . . . . Propulsion 18 | 2 . . . 2 4 10 Treads 10 | 2 . . . . 4 4 Leg . | . . . . . . . Wheel 2 | . . . . 2 . . Hover 1 | . . . . . . 1 Flight 5 | . . . . . . 5 Utility 27 | 1 4 . . 1 2 19 Device 10 | . 1 . . . . 9 Storage 5 | 1 2 . . . 1 1 Processor 2 | . . . . . . 2 Hackware . | . . . . . . . Protection 10 | . 1 . . 1 1 7 Artifact . | . . . . . . . Weapon 26 | 2 2 . . 3 5 14 Energy Gun 4 | . . . . . 4 . Energy Cannon 1 | . . . . . . 1 Ballistic Gun 4 | 2 1 . . 1 . . Ballistic Cannon 2 | . . . . . . 2 Launcher 8 | . 1 . . 2 1 4 Special Weapon 1 | . . . . . . 1 Impact Weapon 1 | . . . . . . 1 Slashing Weapon 5 | . . . . . . 5 Piercing Weapon . | . . . . . . . Special Melee Weapon . | . . . . . . . Unidentified Prototypes 5 | . . . . . 1 4 Corrupted Parts 1 | . . . . . 1 . System Corruption 5 | . . . . . 5 . Parts Lost 25 | . 1 . . 5 8 11 Power 6 | . 1 . . . 2 3 Propulsion 9 | . . . . 2 1 6 Utility 4 | . . . . 1 2 1 Weapon 6 | . . . . 2 3 1 Highest Loss Streak 6 | . 1 . . 5 6 5 To Critical Strikes . | . . . . . . . Average Slot Usage (%) 84 | . 84 85 100 93 76 82 Engine 5 | . 6 . 14 14 7 4 Core 4 | . . . . . . 7 Treads 23 | . 28 28 28 19 34 18 Flight 4 | . . . . . . 8 Device 5 | . 5 . . . . 9 Storage 9 | . 14 14 14 14 9 7 Processor 4 | . . . . . . 8 Protection 9 | . 1 14 14 13 9 9 Energy Gun 1 | . . . . . 14 . Energy Cannon 1 | . . . . . . 2 Ballistic Gun 9 | . 28 28 28 12 . . Naked Turns . | . . . . . . . Heaviest Build 119 | 10 85 45 48 50 97 119 Greatest Support 112 | 40 40 40 40 40 112 106 Greatest Overweight (x) 2 | . 2 1 1 2 2 1 Average Overweight (x) . | . . 1 1 1 . . Largest Inventory Capacity 25 | 8 25 20 20 20 25 25 Average Capacity 20 | 7 16 20 20 20 22 22 Most Carried 25 | 5 9 8 9 9 20 25 Average Carried 13 | 1 4 8 7 7 13 18 Final Capacity 25 | 8 20 20 20 20 25 15 Final Carried 20 | 1 8 8 9 5 20 13 Class Distribution -------------------- 87% | Mutant 12% | Assassin Dominant Class ---------------- Mutant | -10/Materials Mutant | -10/Mines Mutant | -10/Exiles Mutant | -9/Mines Mutant | -8/Materials Mutant | -7/Factory Resources | -11 -10 -10 -10 -9 -8 -7 ----------- Run | Yrd Mat Min Exi Min Mat Fac Matter Collected 1362 | 260 81 200 66 75 170 510 Remotely . | . . . . . . . Salvage Created 2123 | . 204 140 . 15 1061 703 Parts 126 | . 28 14 . 2 40 42 Haulers Intercepted 2 | . . . . . 2 . Recyclers Shooed 1 | . . . . . 1 . Parts Field Recycled . | . . . . . . . Retrieved Matter . | . . . . . . . Parts Self-Destructed . | . . . . . . . Prevented . | . . . . . . . Kills | -11 -10 -10 -10 -9 -8 -7 ------- Run | Yrd Mat Min Exi Min Mat Fac Combat Hostiles Destroyed 51 | . 8 5 . 4 18 16 Melee 6 | . . . . . . 6 Guns 23 | . 6 5 . 2 10 . Cannons 4 | . . . . . . 4 AOE 18 | . 2 . . 2 8 6 Classes Destroyed 12 | . 4 . . 2 5 1 Worker 6 | . 4 . . . . 2 Builder 2 | . . . . . 1 1 Hauler 2 | . . . . . 2 . Recycler 3 | . . . . . 2 1 Watcher 3 | . 1 . . . 1 1 Swarmer 20 | . 6 3 . 1 4 6 Grunt 15 | . 2 2 . . 8 3 Brawler 2 | . . . . . 2 . Sentry 6 | . . . . . 4 2 Demolisher 2 | . . . . 2 . . Programmer 5 | . . . . . . 5 Assembled 1 | . . . . 1 . . Best Kill Streak 8 | . 8 3 . 2 7 5 Combat Bots Only 7 | . 3 3 . 2 7 3 Max Kills in Single Turn 5 | . 5 1 . 1 2 2 Gunslinging 1 | . 1 . . . . . Exploded 2 | . 2 . . 1 2 2 Melee 1 | . . . . . . 1 Uniques/NPCs Destroyed . | . . . . . . . Combat | -11 -10 -10 -10 -9 -8 -7 -------- Run | Yrd Mat Min Exi Min Mat Fac Hostile Shots Fired 345 | . 28 30 . 12 122 153 Missed 87 | . 8 8 . 2 36 33 Damage Taken 3634 | . 215 242 . 372 1380 1425 Core 510 | . 26 26 . 89 192 177 Absorbed by Shields 124 | . . . . . . 124 Ignored by Resistances 84 | . . . . . . 84 Core Remaining (%) 69 | 100 . . . 43 65 . Volleys Fired 137 | . 19 14 . 8 58 38 Largest 2 | . 2 2 . 2 2 1 Hottest 95 | . 40 40 . 50 95 60 Shots Fired 205 | . 36 28 . 15 88 38 Gun 159 | . 34 28 . 13 84 . Cannon 29 | . . . . . . 29 Launcher 17 | . 2 . . 2 4 9 Special . | . . . . . . . Kinetic 76 | . 34 28 . 13 . 1 Thermal 28 | . . . . . . 28 Explosive 17 | . 2 . . 2 4 9 Electromagnetic 84 | . . . . . 84 . Robot Hit Streak 13 | . 13 6 . 6 9 8 Robot Miss Streak 4 | . 3 4 . 1 4 1 Penetration Max . | . . . . . . . Secondary Targets 4 | . 2 . . . 2 . Max Gunslinging Chain 1 | . 1 . . . 1 . Shots Hit Robots 157 | . 29 19 . 10 63 36 Core Hits 124 | . 22 11 . 7 53 31 Critical Kills 1 | . . . . . . 1 Critical Parts Destroyed 1 | . . . . . . 1 Critical Strikes 2 | . . . . . . 2 Smash 2 | . . . . . . 2 Melee Attacks 36 | . . . . . . 36 Impact 9 | . . . . . . 9 Slashing 27 | . . . . . . 27 Piercing . | . . . . . . . Sneak Attacks 2 | . . . . . . 2 Combat Hostiles . | . . . . . . . Follow-up Attacks . | . . . . . . . Damage Inflicted 4541 | . 508 185 . 123 1921 1804 Guns 1556 | . 214 185 . 72 1085 . Cannons 562 | . . . . . . 562 Explosions 1756 | . 294 . . 51 836 575 Melee 654 | . . . . . . 654 Ramming 13 | . . . . . . 13 Kinetic 471 | . 214 185 . 72 . . Thermal 1110 | . . . . . 548 562 Explosive 1196 | . 294 . . 51 276 575 Electromagnetic 1097 | . . . . . 1097 . Impact 203 | . . . . . . 203 Slashing 451 | . . . . . . 451 Piercing . | . . . . . . . Highest Corruption 6 | . . . . . 6 1 Average Corruption 2 | . . . . . 2 1 Corruption Purged . | . . . . . . . Corruption Blocked . | . . . . . . . Effects 3 | . . . . . 3 . Message Errors 1 | . . . . . 1 . Heat Flow Errors 1 | . . . . . 1 . Misfires 1 | . . . . . 1 . Overload Shots . | . . . . . . . Overflow Damage 261 | . . . . . 57 204 Projectiles 11 | . . . . . . 11 Explosions 77 | . . . . . 57 20 Melee 173 | . . . . . . 173 Knockbacks . | . . . . . . . Impact . | . . . . . . . Kinetic . | . . . . . . . Secondary . | . . . . . . . Self-Inflicted Damage 340 | . . . . 63 183 94 Shots 10 | . . . . 2 5 3 Rammed 4 | . . . . . . 4 Targets Rammed 5 | . . . . . . 5 Kicked . | . . . . . . . Crushed 1 | . . . . . . 1 Highest Temperature 331 | . 18 12 . 16 331 300 Average Temperature 112 | . 9 7 . 6 127 115 Received Heat Transfer 960 | . 69 81 . . 531 279 Effects 2 | . . . . . 2 . Shutdowns 1 | . . . . . 1 . Interference 1 | . . . . . 1 . Siege Activations . | . . . . . . . Robots Corrupted . | . . . . . . . Combat Hostiles . | . . . . . . . Parts Fried 4 | . . . . . 4 . Impact Corruptions 1 | . . . . . . 1 Robots Melted . | . . . . . . . Combat Hostiles . | . . . . . . . Parts Melted 4 | . . . . . . 4 Heat Transferred 1427 | . . . . . 650 777 Parts Sabotaged . | . . . . . . . Parts Stolen . | . . . . . . . Parts Stripped . | . . . . . . . Power Chain Reactions 7 | . . . . . 7 . Alert | -11 -10 -10 -10 -9 -8 -7 ------- Run | Yrd Mat Min Exi Min Mat Fac Peak Influence 479 | . 172 199 . 32 479 303 Initial 176 | . . 27 . . 8 176 Average 125 | . 30 73 . 19 229 146 Maximum Alert Level 2 | . . . . . 2 1 Low Security (%) 72 | 100 100 100 . 100 37 65 Level 1 25 | . . . . . 48 34 Level 2 1 | . . . . . 14 . Level 3 . | . . . . . . . Level 4 . | . . . . . . . Level 5 . | . . . . . . . High Security . | . . . . . . . Max Security . | . . . . . . . Squads Dispatched 9 | . . . . . 2 7 Investigation 1 | . . . . . . 1 Extermination 5 | . . . . . . 5 Reinforcement 3 | . . . . . 2 1 Assault . | . . . . . . . Garrison . | . . . . . . . Intercept . | . . . . . . . Searches Triggered . | . . . . . . . Construction Impeded 1 | . . . . . 1 . Haulers Reinforced . | . . . . . . . Active Scanning Responses . | . . . . . . . Cargo Convoy Interrupts . | . . . . . . . Stealth | -11 -10 -10 -10 -9 -8 -7 --------- Run | Yrd Mat Min Exi Min Mat Fac Distress Signals 5 | . 1 . . . 3 1 Communications Jammed . | . . . . . . . Distress Signals . | . . . . . . . Times Spotted 83 | . 12 7 . 6 25 33 Peak Tracking Total 9 | . 4 2 . 3 9 6 Tactical Retreats 5 | . . . . . 1 4 Traps | -11 -10 -10 -10 -9 -8 -7 ------- Run | Yrd Mat Min Exi Min Mat Fac Traps Triggered 5 | . . . . . . 5 Indirectly . | . . . . . . . Trap Hack Attempts . | . . . . . . . Triggered . | . . . . . . . Disarmed . | . . . . . . . Reprogrammed . | . . . . . . . Reused . | . . . . . . . Traps Extracted . | . . . . . . . Installed . | . . . . . . . Triggered . | . . . . . . . Machines | -11 -10 -10 -10 -9 -8 -7 ---------- Run | Yrd Mat Min Exi Min Mat Fac Machines Disabled 7 | . . . . . 4 3 Max in Single Turn 2 | . . . . . 2 1 Machines Repaired . | . . . . . . . Machines Dismantled . | . . . . . . . Machines Sabotaged . | . . . . . . . Overloaded Fab Kills . | . . . . . . . Hacking | -11 -10 -10 -10 -9 -8 -7 --------- Run | Yrd Mat Min Exi Min Mat Fac Machines Accessed 7 | . 1 . . . 1 5 Terminals 4 | . 1 . . . . 3 Fabricators 1 | . . . . . . 1 Repair Stations . | . . . . . . . Recycling Units . | . . . . . . . Scanalyzers 1 | . . . . . 1 . Garrison Access 1 | . . . . . . 1 Total Hacks 18 | . 3 . . . 4 11 Successful 7 | . 1 . . . 4 2 Failed 11 | . 2 . . . . 9 Catastrophic 3 | . 1 . . . . 2 Database Lockouts . | . . . . . . . Manual 1 | . . . . . . 1 Terminals 10 | . 3 . . . . 7 Fabricators 1 | . . . . . . 1 Repair Stations . | . . . . . . . Recycling Units . | . . . . . . . Scanalyzers 4 | . . . . . 4 . Garrison Access 3 | . . . . . . 3 Terminal Hacks 1 | . 1 . . . . . Branch Access Points 1 | . 1 . . . . . Fabricator Hacks 1 | . . . . . . 1 Build 1 | . . . . . . 1 Repair Station Hacks . | . . . . . . . Recycling Unit Hacks . | . . . . . . . Scanalyzer 4 | . . . . . 4 . Insert Component 2 | . . . . . 2 . Analyze 2 | . . . . . 2 . Garrison Access Hacks . | . . . . . . . Unauthorized Hacks 1 | . . . . . . 1 Terminals 1 | . . . . . . 1 Botnet 1 | . . . . . . 1 Fabricators . | . . . . . . . Repair Stations . | . . . . . . . Recycling Units . | . . . . . . . Scanalyzers . | . . . . . . . Garrison Access . | . . . . . . . Data Cores Recovered . | . . . . . . . Used . | . . . . . . . Hacking Detections 5 | . 1 . . . 1 3 Full Trace Events 2 | . 1 . . . . 1 Feedback Events . | . . . . . . . Feedback Blocked . | . . . . . . . Robot Schematics Acquired . | . . . . . . . Robots Built . | . . . . . . . Authchips . | . . . . . . . Time . | . . . . . . . Total Robot Build Rating . | . . . . . . . Part Schematics Acquired 2 | . . . . . 2 . Parts Built 2 | . . . . . . 2 Authchips . | . . . . . . . Time 117 | . . . . . . 117 Total Part Build Rating 14 | . . . . . . 14 Parts Repaired . | . . . . . . . Time . | . . . . . . . Parts Recycled . | . . . . . . . Recycled Matter . | . . . . . . . Retrieved Matter . | . . . . . . . Retrieved Components . | . . . . . . . Parts Scanalyzed 2 | . . . . . 2 . Part Schematics Acquired 2 | . . . . . 2 . Parts Damaged . | . . . . . . . Bothacking | -11 -10 -10 -10 -9 -8 -7 ------------ Run | Yrd Mat Min Exi Min Mat Fac Used RIF Installer . | . . . . . . . Robots Hacked . | . . . . . . . Non-combat . | . . . . . . . Combat . | . . . . . . . Robot Hacks Applied . | . . . . . . . Relay Couplers Released . | . . . . . . . Fabnet Peak Effective % . | . . . . . . . Robots Rewired . | . . . . . . . Allies Hacked . | . . . . . . . Hacks Repelled . | . . . . . . . Allies | -11 -10 -10 -10 -9 -8 -7 -------- Run | Yrd Mat Min Exi Min Mat Fac Total Allies 3 | . . 3 . . . . Largest Group 3 | . . 3 2 1 . . Highest-Rated Group 40 | . . 40 24 16 . . Highest-Rated Ally 16 | . . 16 16 16 . . Total Orders . | . . . . . . . Ally Attacks 15 | . . 14 . 1 . . Total Damage 142 | . . 142 . . . . Kills 2 | . . 2 . . . . Allies Corrupted . | . . . . . . . Allies Melted . | . . . . . . . Intel | -11 -10 -10 -10 -9 -8 -7 ------- Run | Yrd Mat Min Exi Min Mat Fac Robot Analysis Total . | . . . . . . . Derelict Logs Recovered . | . . . . . . . Drone Launches . | . . . . . . . Drone Recoveries . | . . . . . . . Exploration | -11 -10 -10 -10 -9 -8 -7 ------------- Run | Yrd Mat Min Exi Min Mat Fac Turns Passed 5317 | 74 539 746 420 144 519 2875 Spaces Moved 2385 | 48 229 292 175 65 198 1378 Core 13 | 13 . . . . . . Treads 1744 | 35 229 292 175 31 191 791 Legs . | . . . . . . . Wheels 41 | . . . . 34 7 . Hover . | . . . . . . . Flight 587 | . . . . . . 587 Fastest Speed 50 | 50 160 240 240 110 110 109 Average Speed 188 | 130 204 240 240 172 159 175 Slowest Speed 320 | 160 320 240 240 240 240 240 Overloaded Moves . | . . . . . . . Propulsion Burnouts . | . . . . . . . Robots Hopped . | . . . . . . . Cave-ins Triggered . | . . . . . . . Exploration Rate (%) 36 | 4 51 64 53 27 21 37 Regions Visited 6 Branch Regions 3 Pre-discovered Areas . | . . . . . . . Known Exits Taken 1 | . 1 . . . . . Unknown Exits Taken 5 | 1 . 1 1 1 1 . Scrap Searched 1 | . . 1 . . . . Spaces Dug 18 | . . . . . . 18 Terrain Destroyed 131 | . 17 . . 15 53 46 Melee 18 | . . . . . . 18 Projectile . | . . . . . . . AOE 113 | . 17 . . 15 53 28 Terrain Rammed . | . . . . . . . Walls Destroyed . | . . . . . . . Machines Disabled . | . . . . . . . Actions | -11 -10 -10 -10 -9 -8 -7 --------- Run | Yrd Mat Min Exi Min Mat Fac Total 2942 | 60 272 316 176 83 313 1722 Wait 157 | . 7 11 . 5 18 116 Move 2379 | 47 228 291 174 64 197 1378 Hop . | . . . . . . . Pick Up 81 | 7 10 . 1 . 23 40 Fast Attach 2 | . . . . . . 2 Attach 55 | 6 2 . 1 4 9 33 Detach 8 | . . . . . 1 7 Swap 26 | . 4 . . 2 5 15 Drop 38 | . 2 . . . 2 34 Fire 137 | . 19 14 . 8 58 38 Melee 36 | . . . . . . 36 Ram 1 | . . . . . . 1 Kick . | . . . . . . . Crush 4 | . . . . . . 4 Escape Stasis 18 | . . . . . . 18 Rewire . | . . . . . . . Trap . | . . . . . . . Miscellaneous . | . . . . . . . Route ------- -11/Scrapyard -10/Materials (discovered 2 exits: [*Mat] / *Min) -10/Mines (discovered 3 exits: [*Mat x2] / [*Exi]) -10/Exiles -9/Mines -8/Materials -7/Factory (discovered 2 exits: *Fac x2) History --------- Turn | Location | Event 18 | -11/Scrapyard | Discovered new exit (range 15) 75 | -11/Scrapyard | Entered Materials 305 | -10/Materials | Build established: Mutant 426 | -10/Materials | Identified exit to Mines 485 | -10/Materials | Discovered new exit (range 16) 614 | -10/Materials | Entered Mines 618 | -10/Mines | Met a Derelict bent on vengeance 878 | -10/Mines | Discovered new exit (range 7) 907 | -10/Mines | Assisted by bots powering up and referring to "LRC-V3" 1067 | -10/Mines | Discovered new exit (range 6) 1351 | -10/Mines | Deemed a non-threat by the Exiles lab entrance 1351 | -10/Mines | Discovered new exit (range 5) 1360 | -10/Mines | Entered Exiles 1360 | -10/Exiles | Accompanied by 2 allies 1417 | -10/Exiles | Met 8R-AWN 1457 | -10/Exiles | Met EX-HEX 1549 | -10/Exiles | Met EX-DEC 1751 | -10/Exiles | Discovered new exit (range 14) 1780 | -10/Exiles | Entered Mines 1780 | -9/Mines | Accompanied by 2 allies 1781 | -9/Mines | Assembled infested the area 1786 | -9/Mines | Assisted by a Guerilla fighting off Assembled 1859 | -9/Mines | Lost 3 allies 1882 | -9/Mines | Core integrity fell below 50% 1904 | -9/Mines | Discovered new exit (range 15) 1912 | -9/Mines | Lost 5 parts (2n1u2w) 1924 | -9/Mines | Entered Materials 1924 | -8/Materials | Evolved 4 slots: Propulsion x2, Utility x2 2141 | -8/Materials | Destroyed 7 combat bots 2310 | -8/Materials | Discovered new exit (range 7) 2443 | -8/Materials | Entered Factory 2443 | -7/Factory | Evolved 2 slots: Power x1, Utility x1 2465 | -7/Factory | Lost 6 parts (1p1n1u3w) 2726 | -7/Factory | Fabricated Imp. System Guard? 3799 | -7/Factory | Discovered new exit (range 5) 4878 | -7/Factory | Discovered new exit (range 7) 4884 | -7/Factory | Identified exit to Factory 4888 | -7/Factory | Build established: Assassin 5318 | -7/Factory | Self-destructed Last Messages --------------- (Smash). 05288_ G-47 Trooper destroyed. 05288_ R-06 Scavenger collects Lgt. Nuclear Core. 05299_ Critical hit (Burn: +26). 05300_ G-47 Trooper suffers critical hit (Smash). 05300_ Destroyed Aluminum Leg. 05300_ G-47 Trooper system corrupted by crushing effect. 05303_ G-47 Trooper destroyed. 05304_ Acquired 42 matter. 05305_ Critical hit (Burn: +25). 05309_ Mic. Nuclear Core destroyed. 05310_ Cesium-ion Thruster destroyed. 05312_ Maul severed. 05313_ Slammed into L-41 Fighter. 05314_ Xenon Bombardment Thruster destroyed. 05317_ Imp. Shield Generator destroyed. 05318_ Xenon Bombardment Thruster destroyed. Map ----- +----------------------------------------------------+ | ????????????????????????????? ####+######????????? | | ????????????????????????????? ### ##????????? | | ??????????????????????????????? # ##????????? | | ??????????????????????????????? # * ##????????? | | ??????????????????????????????? + ##????????? | | ??????????????????????????????? # "T" ##????????? | | ????????????????????????### # """ ##????????? | | ????????????????????????######+##"#######????????? | | ????????????????????????## ]] ######????????? | | ????????????????????????## ##????????????? | | ????????????????????????## ##????????????? | | ????????????????????????## ##????????????? | | ?????????????????????################??########### | | ?????????????????????#####%##########??########### | | ?????????????????????## != ##??## | | ?????????????????????## ##??## | | ?????????????????????## ##??## | | ?????????????????????## ##??## | | ?????????????????????## ##??## """ """ | | ?????????????????????## ##??## """ """ | | ?????????????????????## ##??## """ """ | | ?????????????????????## ##??## | | ?????????????????????## ##??## """ """ | | ?????????????????????## g ##??## """ """ | | ????????????????????###[ l p ##??## """ """ | | ???????????? #######%/@ ###### | | ????????????##########!######+##+##############+## | | ?????? | | ?????? | | ?????? "" ! | | ??????? " | | ??????? "" """""" """""" """""" | | ???????? """""" """""" """""" | | ??????? """""" """""" """""" | | ???????###+###### """""" """""" """""" | | ???????## ## """""" """""" """""" | | ???????????????## """""" """""" """""" | | ???????????????## """""" """""" """""" | | ???????????????## """""" """""" """""" | | ???????????????## """""" """""" """""" | | ???????????????## ! | | ?????????????????? | | ?????????????????? | | ?????????????????? ^ ####+####"############+### | | ??????????????????? ??? # #### | | ??????????????????????? # #### | | ??????????????????????? # """ """ [#### """ " | | ??????????????????????? # """ """ + + """ " | | ??????????????????????? + """ """ #### """ " | | ??????????????????????? # #### | +----------------------------------------------------+ Best States ------------- Heat Dissipation 35 Energy Generation 27 Energy Capacity 370 Matter Stores 300 Matter Capacity 300 Sight Range 16 Robot Scan Range 15 Terrain Scan Range 16 Terrain Scan Density 10 Corruption Containment 12 Armor Coverage 375 Resistance: EM 15 Evasion (%) 50 Recoil Reduction 4 Item Schematics ----------------- Humpback | -8/Materials | Scanalyzed Hcp. Storage Unit | -8/Materials | Scanalyzed Robot Schematics ------------------ None Fabricated ------------ Imp. System Guard | x2 | -7/Factory | Preloaded Alien Tech Used ----------------- None Achievements -------------- None Challenges ------------ None Game ------ Seed KineticMissileShockpuncher Manual? 0 Play Time 00:33:44 Cumulative 93.7 hours Start 2024.04.15 @ 12:07:25 End 2024.04.15 @ 12:40:55 Sessions 1 Manual Loads 0 Difficulty Rogue Special Mode None Game No. 119 Rogue 119 Adventurer 0 Explorer 0 Win Type - Total 1 Types 1/0/0/0/0/0/0/0/0 Lore% 42 Gallery% 48 Achievement% 45 Wizard Run 0 Options --------- Layout 1 ASCII 0 Keyboard 0 Movement Mouse Keybinds 0 Fullscreen 2 Font 32/Smallcaps Map View 50x40 Zoom Use 0% Tactical HUD 1 Map Filters NONE Filters NONE Steam 1 RUN: 591c4406-55ca-4d50-bc35-75bbad10b369